[Event "*** Qualifier 3: Titled Tuesday 3|2 Blitz"]
[Site "Chess.com"]
[Date "2017.04.18"]
[Round "2"]
[White "iturrizaga"]
[Black "TomsKantans"]
[Result "1-0"]
[WhiteElo "2637"]
[BlackElo "2520"]
[TimeControl "180+2"]
[EndTime "13:19:14 PDT"]
[Termination "iturrizaga won by resignation"]

1. Nf3 {[%clk 0:03:02]} 1... Nf6 {[%clk 0:02:59.5]} 2. c4 {[%clk 0:03:03.9]}
2... c5 {[%clk 0:02:59.4]} 3. g3 {[%clk 0:03:05.3]} 3... g6 {[%clk 0:02:59.9]}
4. Bg2 {[%clk 0:03:06.7]} 4... Bg7 {[%clk 0:03:01.2]} 5. O-O {[%clk 0:03:08.6]}
5... O-O {[%clk 0:03:02.7]} 6. d4 {[%clk 0:03:10.5]} 6... d5 {[%clk 0:03:04.1]}
7. cxd5 {[%clk 0:03:11]} 7... Qxd5 {[%clk 0:03:01.6]} 8. Nc3 {[%clk 0:03:11.1]}
8... Qh5 {[%clk 0:03:02.3]} 9. dxc5 {[%clk 0:03:12.1]} 9... Nc6 {[%clk
0:03:02.2]} 10. Qa4 {[%clk 0:03:07]} 10... Qxc5 {[%clk 0:03:02]} 11. Rd1 {[%clk
0:02:59.6]} 11... Qh5 {[%clk 0:02:41.3]} 12. Bg5 {[%clk 0:02:55.2]} 12... h6
{[%clk 0:02:37.1]} 13. Bxf6 {[%clk 0:02:41.9]} 13... Bxf6 {[%clk 0:02:32.2]} 14.
Rac1 {[%clk 0:02:36.9]} 14... Bf5 {[%clk 0:02:05]} 15. Nd5 {[%clk 0:02:19]}
15... Rad8 {[%clk 0:02:00.6]} 16. Nf4 {[%clk 0:02:18.5]} 1-0

[Event "*** Qualifier 3: Titled Tuesday 3|2 Blitz"]
[Site "Chess.com"]
[Date "2017.04.18"]
[Round "2"]
[White "DryCounty"]
[Black "JoachimBN"]
[Result "1/2-1/2"]
[WhiteElo "2473"]
[BlackElo "2650"]
[TimeControl "180+2"]
[EndTime "13:19:31 PDT"]
[Termination "Game drawn by agreement"]

1. Nf3 {[%clk 0:03:02]} 1... b6 {[%clk 0:02:58.8]} 2. c4 {[%clk 0:03:01.6]} 2...
Bb7 {[%clk 0:02:59.1]} 3. g3 {[%clk 0:03:00.3]} 3... g6 {[%clk 0:02:59.6]} 4.
Bg2 {[%clk 0:03:00.7]} 4... Bg7 {[%clk 0:03:00.9]} 5. O-O {[%clk 0:03:01.5]}
5... Nf6 {[%clk 0:03:02.4]} 6. d3 {[%clk 0:02:57.9]} 6... O-O {[%clk 0:03:01.8]}
7. e4 {[%clk 0:02:58.3]} 7... c5 {[%clk 0:03:01.9]} 8. Nc3 {[%clk 0:02:58.6]}
8... Nc6 {[%clk 0:03:02.2]} 9. Bg5 {[%clk 0:02:55.7]} 9... d6 {[%clk 0:03:01.4]}
10. Qd2 {[%clk 0:02:56]} 10... Ng4 {[%clk 0:02:59.2]} 11. h3 {[%clk 0:02:53.4]}
11... Nge5 {[%clk 0:02:57]} 12. Nxe5 {[%clk 0:02:51.8]} 12... dxe5 {[%clk
0:02:58.9]} 13. Rad1 {[%clk 0:02:45.2]} 13... Qd7 {[%clk 0:02:57]} 14. Bh6
{[%clk 0:02:40.7]} 14... Bxh6 {[%clk 0:02:55.9]} 15. Qxh6 {[%clk 0:02:41.4]}
15... Nd4 {[%clk 0:02:56.3]} 16. h4 {[%clk 0:02:39.6]} 16... f6 {[%clk 0:02:51]}
17. Qe3 {[%clk 0:02:36.6]} 17... Rad8 {[%clk 0:02:48.2]} 18. Kh2 {[%clk
0:02:36.9]} 18... e6 {[%clk 0:02:46.1]} 19. f4 {[%clk 0:02:35.6]} 19... Qg7
{[%clk 0:02:41.3]} 20. fxe5 {[%clk 0:02:32.8]} 20... fxe5 {[%clk 0:02:43.2]} 21.
Qg5 {[%clk 0:02:29.9]} 21... h6 {[%clk 0:02:41.4]} 22. Qe3 {[%clk 0:02:26.4]}
22... Bc6 {[%clk 0:02:41.3]} 23. Bh3 {[%clk 0:02:21.7]} 23... Kh7 {[%clk
0:02:38.9]} 24. Ne2 {[%clk 0:02:10.7]} 24... Nxe2 {[%clk 0:02:35.9]} 25. Qxe2
{[%clk 0:02:09.7]} 25... Qe7 {[%clk 0:02:36.8]} 26. Qe3 {[%clk 0:02:07.7]} 26...
Qd6 {[%clk 0:02:34]} 27. Rxf8 {[%clk 0:02:02.9]} 27... Rxf8 {[%clk 0:02:34.5]}
28. Rf1 {[%clk 0:02:04.4]} 28... Rxf1 {[%clk 0:02:34.8]} 29. Bxf1 {[%clk
0:02:06.3]} 29... Qf8 {[%clk 0:02:34]} 1/2-1/2

[Event "*** Qualifier 3: Titled Tuesday 3|2 Blitz"]
[Site "Chess.com"]
[Date "2017.04.18"]
[Round "2"]
[White "kleinebeer98"]
[Black "djogrodek1"]
[Result "1-0"]
[WhiteElo "2455"]
[BlackElo "2388"]
[TimeControl "180+2"]
[EndTime "13:19:34 PDT"]
[Termination "kleinebeer98 won by resignation"]

1. e4 {[%clk 0:03:02]} 1... c5 {[%clk 0:03:00]} 2. Nf3 {[%clk 0:03:00.6]} 2...
d6 {[%clk 0:03:00.1]} 3. d4 {[%clk 0:03:01.7]} 3... cxd4 {[%clk 0:03:02]} 4.
Nxd4 {[%clk 0:03:03.6]} 4... Nf6 {[%clk 0:03:03.6]} 5. Nc3 {[%clk 0:03:04.8]}
5... g6 {[%clk 0:03:05.3]} 6. h3 {[%clk 0:03:00.8]} 6... Bg7 {[%clk 0:03:05.9]}
7. Bc4 {[%clk 0:03:01.5]} 7... Nc6 {[%clk 0:03:07.1]} 8. Nf3 {[%clk 0:03:01.9]}
8... O-O {[%clk 0:03:08.3]} 9. O-O {[%clk 0:03:00.4]} 9... Bd7 {[%clk
0:03:09.8]} 10. Re1 {[%clk 0:02:59.7]} 10... Rc8 {[%clk 0:03:11.3]} 11. Bb3
{[%clk 0:03:00.3]} 11... Re8 {[%clk 0:03:00.8]} 12. Bg5 {[%clk 0:02:59.1]} 12...
Na5 {[%clk 0:02:41.7]} 13. Nd5 {[%clk 0:02:58.4]} 13... Nxd5 {[%clk 0:02:29.3]}
14. exd5 {[%clk 0:02:56.8]} 14... Bxb2 {[%clk 0:02:26.9]} 15. Rb1 {[%clk
0:02:53.6]} 15... Bf6 {[%clk 0:02:26.3]} 16. h4 {[%clk 0:02:46.2]} 16... Nxb3
{[%clk 0:02:18.6]} 17. Rxb3 {[%clk 0:02:39.4]} 17... Qc7 {[%clk 0:02:14]} 18.
Rbe3 {[%clk 0:02:34.4]} 18... Qxc2 {[%clk 0:02:03.7]} 19. Qxc2 {[%clk
0:02:36.3]} 19... Rxc2 {[%clk 0:02:05]} 20. Bxf6 {[%clk 0:02:37.5]} 20... exf6
{[%clk 0:02:06.8]} 21. Rxe8+ {[%clk 0:02:38.5]} 21... Bxe8 {[%clk 0:02:08.7]}
22. Rxe8+ {[%clk 0:02:39.9]} 22... Kg7 {[%clk 0:02:10.6]} 23. Re7 {[%clk
0:02:38]} 23... Rxa2 {[%clk 0:02:10.8]} 24. Rxb7 {[%clk 0:02:39]} 24... Ra5
{[%clk 0:02:11.8]} 25. Nd4 {[%clk 0:02:39.1]} 25... Rxd5 {[%clk 0:02:12.4]} 26.
Ne6+ {[%clk 0:02:40.6]} 26... Kh6 {[%clk 0:02:10.7]} 27. Rxf7 {[%clk 0:02:42.1]}
27... g5 {[%clk 0:02:08.5]} 28. Rxf6+ {[%clk 0:02:41.8]} 28... Kh5 {[%clk
0:02:09.3]} 29. f3 {[%clk 0:02:37.8]} 29... gxh4 {[%clk 0:02:02.3]} 30. Nf4+
{[%clk 0:02:38.6]} 30... Kg5 {[%clk 0:02:03.3]} 31. Nxd5 {[%clk 0:02:40.5]} 1-0

[Event "*** Qualifier 3: Titled Tuesday 3|2 Blitz"]
[Site "Chess.com"]
[Date "2017.04.18"]
[Round "2"]
[White "ABDELAZEEZ-M"]
[Black "chesstatour"]
[Result "1-0"]
[WhiteElo "2126"]
[BlackElo "1965"]
[TimeControl "180+2"]
[EndTime "13:21:17 PDT"]
[Termination "ABDELAZEEZ-M won on time"]

1. d4 {[%clk 0:03:00.1]} 1... Nf6 {[%clk 0:02:59.7]} 2. c4 {[%clk 0:03:00.8]}
2... b6 {[%clk 0:03:00.8]} 3. Nc3 {[%clk 0:03:00.1]} 3... Bb7 {[%clk 0:03:00.1]}
4. f3 {[%clk 0:03:00.9]} 4... e6 {[%clk 0:03:01.5]} 5. e4 {[%clk 0:03:01.7]}
5... Bb4 {[%clk 0:03:02.6]} 6. Bd2 {[%clk 0:03:01.5]} 6... O-O {[%clk
0:03:02.9]} 7. Bd3 {[%clk 0:03:02.2]} 7... d5 {[%clk 0:02:53.3]} 8. cxd5 {[%clk
0:03:02.6]} 8... exd5 {[%clk 0:02:52.2]} 9. e5 {[%clk 0:03:03.8]} 9... Ne8
{[%clk 0:02:37.7]} 10. Nge2 {[%clk 0:03:03.5]} 10... c5 {[%clk 0:02:35.9]} 11.
a3 {[%clk 0:03:02.8]} 11... Bxc3 {[%clk 0:02:34.2]} 12. bxc3 {[%clk 0:03:03.2]}
12... Nc6 {[%clk 0:02:30.9]} 13. O-O {[%clk 0:03:03.2]} 13... Nc7 {[%clk
0:02:24.9]} 14. f4 {[%clk 0:03:03.3]} 14... cxd4 {[%clk 0:02:13.8]} 15. cxd4
{[%clk 0:03:03.8]} 15... Ne6 {[%clk 0:02:02.5]} 16. Be3 {[%clk 0:03:02.4]} 16...
Na5 {[%clk 0:01:57.7]} 17. f5 {[%clk 0:03:02.6]} 17... Nc7 {[%clk 0:01:28.7]}
18. f6 {[%clk 0:03:02.8]} 18... g6 {[%clk 0:01:27.5]} 19. Qe1 {[%clk 0:02:58.4]}
19... Nc4 {[%clk 0:01:23.7]} 20. Bh6 {[%clk 0:02:55.6]} 20... Re8 {[%clk
0:01:21.4]} 21. Qh4 {[%clk 0:02:56]} 21... Nd2 {[%clk 0:01:02.5]} 22. Bxg6
{[%clk 0:02:38.9]} 22... Nxf1 {[%clk 0:00:15.1]} 23. Rxf1 {[%clk 0:02:28.5]} 1-0

[Event "*** Qualifier 3: Titled Tuesday 3|2 Blitz"]
[Site "Chess.com"]
[Date "2017.04.18"]
[Round "2"]
[White "DavidMarkosyan"]
[Black "grzechu96"]
[Result "1-0"]
[WhiteElo "2329"]
[BlackElo "2370"]
[TimeControl "180+2"]
[EndTime "13:21:20 PDT"]
[Termination "DavidMarkosyan won by resignation"]

1. e4 {[%clk 0:03:02]} 1... c5 {[%clk 0:03:01]} 2. Nf3 {[%clk 0:03:02.4]} 2...
d6 {[%clk 0:03:02.3]} 3. d4 {[%clk 0:03:03.2]} 3... cxd4 {[%clk 0:03:04.2]} 4.
Nxd4 {[%clk 0:03:04.9]} 4... Nf6 {[%clk 0:03:04.9]} 5. Nc3 {[%clk 0:03:06.6]}
5... a6 {[%clk 0:03:06.5]} 6. Bc4 {[%clk 0:03:07.1]} 6... e6 {[%clk 0:03:05.8]}
7. O-O {[%clk 0:03:07.5]} 7... Be7 {[%clk 0:03:04.5]} 8. Bb3 {[%clk 0:03:07.3]}
8... O-O {[%clk 0:03:03.6]} 9. f4 {[%clk 0:03:07.7]} 9... Qc7 {[%clk 0:03:04.9]}
10. f5 {[%clk 0:03:07.2]} 10... e5 {[%clk 0:03:00.4]} 11. Nde2 {[%clk
0:03:07.7]} 11... b5 {[%clk 0:02:57]} 12. Bg5 {[%clk 0:03:07.3]} 12... Nbd7
{[%clk 0:02:36.1]} 13. Ng3 {[%clk 0:03:06.7]} 13... Bb7 {[%clk 0:02:31.9]} 14.
Nh5 {[%clk 0:03:03.8]} 14... Rfe8 {[%clk 0:02:26.7]} 15. Bxf6 {[%clk 0:03:01]}
15... Nxf6 {[%clk 0:02:24.1]} 16. Nxf6+ {[%clk 0:03:01.5]} 16... Bxf6 {[%clk
0:02:26]} 17. Nd5 {[%clk 0:03:02]} 17... Bxd5 {[%clk 0:02:26.6]} 18. Bxd5 {[%clk
0:02:58.6]} 18... Rac8 {[%clk 0:02:27.6]} 19. c3 {[%clk 0:02:59.6]} 19... b4
{[%clk 0:02:06]} 20. c4 {[%clk 0:02:53.3]} 20... Qc5+ {[%clk 0:02:05]} 21. Kh1
{[%clk 0:02:53.3]} 21... Qd4 {[%clk 0:02:04.6]} 22. Qh5 {[%clk 0:02:47.2]} 22...
Re7 {[%clk 0:02:03.6]} 23. b3 {[%clk 0:02:46.7]} 23... a5 {[%clk 0:02:01.5]} 24.
Qe2 {[%clk 0:02:35.1]} 24... Ra7 {[%clk 0:02:00.8]} 25. Rad1 {[%clk 0:02:34.9]}
25... Qc5 {[%clk 0:02:01.2]} 26. Rd3 {[%clk 0:02:29.6]} 26... a4 {[%clk
0:02:01.5]} 27. Rfd1 {[%clk 0:02:29.8]} 27... axb3 {[%clk 0:02:02.3]} 28. axb3
{[%clk 0:02:30.3]} 28... Rb8 {[%clk 0:01:49.9]} 29. g3 {[%clk 0:02:29.4]} 29...
Rb6 {[%clk 0:01:44.8]} 30. Kg2 {[%clk 0:02:28.9]} 30... Rba6 {[%clk 0:01:46.1]}
31. h4 {[%clk 0:02:27.6]} 31... h6 {[%clk 0:01:42.4]} 32. Kh3 {[%clk 0:02:26.9]}
32... Ra2 {[%clk 0:01:40.8]} 33. R3d2 {[%clk 0:02:26.1]} 33... Rxd2 {[%clk
0:01:40.2]} 34. Rxd2 {[%clk 0:02:27]} 34... Ra3 {[%clk 0:01:41.6]} 35. Rd3
{[%clk 0:02:26.7]} 35... Qg1 {[%clk 0:01:40.3]} 36. Qg2 {[%clk 0:02:24.5]} 36...
Qxg2+ {[%clk 0:01:18.2]} 37. Kxg2 {[%clk 0:02:24.8]} 37... Bd8 {[%clk
0:01:19.1]} 38. Bc6 {[%clk 0:02:23]} 38... Rxb3 {[%clk 0:01:19.4]} 39. Rxb3
{[%clk 0:02:22.5]} 1-0

[Event "*** Qualifier 3: Titled Tuesday 3|2 Blitz"]
[Site "Chess.com"]
[Date "2017.04.18"]
[Round "2"]
[White "ChristopherYoo"]
[Black "jefferyx"]
[Result "0-1"]
[WhiteElo "2254"]
[BlackElo "2576"]
[TimeControl "180+2"]
[EndTime "13:21:47 PDT"]
[Termination "jefferyx won by resignation"]

1. e4 {[%clk 0:03:02]} 1... c5 {[%clk 0:03:01.1]} 2. Nf3 {[%clk 0:03:02.9]} 2...
d6 {[%clk 0:03:02.2]} 3. d4 {[%clk 0:03:04]} 3... Nf6 {[%clk 0:03:03.9]} 4. Nc3
{[%clk 0:03:04.2]} 4... cxd4 {[%clk 0:03:04.5]} 5. Nxd4 {[%clk 0:03:05.4]} 5...
a6 {[%clk 0:03:06.2]} 6. f3 {[%clk 0:03:06.9]} 6... e5 {[%clk 0:03:03.9]} 7. Nb3
{[%clk 0:03:08]} 7... Be6 {[%clk 0:02:58.4]} 8. Be3 {[%clk 0:03:08.8]} 8... Be7
{[%clk 0:02:58.3]} 9. Qd2 {[%clk 0:03:09.2]} 9... Nbd7 {[%clk 0:02:58.5]} 10. g4
{[%clk 0:03:10.3]} 10... b5 {[%clk 0:02:58.9]} 11. O-O-O {[%clk 0:03:10.3]}
11... Nb6 {[%clk 0:02:59.8]} 12. Qf2 {[%clk 0:03:09.5]} 12... Nfd7 {[%clk
0:02:57]} 13. Nd5 {[%clk 0:02:50.2]} 13... Bxd5 {[%clk 0:02:55]} 14. exd5 {[%clk
0:02:51.2]} 14... Nc4 {[%clk 0:02:51.9]} 15. Nd2 {[%clk 0:02:45.6]} 15... Nxe3
{[%clk 0:02:45]} 16. Qxe3 {[%clk 0:02:46.7]} 16... Bg5 {[%clk 0:02:46.9]} 17.
Qe1 {[%clk 0:02:47.5]} 17... O-O {[%clk 0:02:42.2]} 18. Kb1 {[%clk 0:02:48]}
18... Bxd2 {[%clk 0:02:40.9]} 19. Rxd2 {[%clk 0:02:46.6]} 19... Nc5 {[%clk
0:02:39.7]} 20. Bd3 {[%clk 0:02:42.8]} 20... b4 {[%clk 0:02:34.1]} 21. h4 {[%clk
0:02:20.8]} 21... a5 {[%clk 0:02:33.1]} 22. g5 {[%clk 0:01:55]} 22... a4 {[%clk
0:02:33.8]} 23. Qe3 {[%clk 0:01:49.9]} 23... b3 {[%clk 0:02:28]} 24. cxb3 {[%clk
0:01:31.2]} 24... axb3 {[%clk 0:02:29.9]} 25. a3 {[%clk 0:01:32.1]} 25... f5
{[%clk 0:02:31.8]} 26. f4 {[%clk 0:01:15.6]} 26... exf4 {[%clk 0:02:31.3]} 27.
Qxf4 {[%clk 0:01:16.2]} 27... Ra4 {[%clk 0:02:33.2]} 28. Qe3 {[%clk 0:01:10]}
28... Qd7 {[%clk 0:02:29]} 29. h5 {[%clk 0:00:56.7]} 29... f4 {[%clk 0:02:27.3]}
30. Qf3 {[%clk 0:00:57]} 30... Re8 {[%clk 0:02:19.3]} 31. Re2 {[%clk 0:00:57.2]}
31... Rd4 {[%clk 0:02:18.8]} 32. Rxe8+ {[%clk 0:00:50.5]} 32... Qxe8 {[%clk
0:02:20.7]} 33. Bf5 {[%clk 0:00:43.9]} 33... Qe5 {[%clk 0:02:21.6]} 34. Be6+
{[%clk 0:00:39.7]} 34... Kf8 {[%clk 0:02:22.9]} 35. Qf2 {[%clk 0:00:25.5]} 35...
Qe4+ {[%clk 0:02:20.8]} 0-1

[Event "*** Qualifier 3: Titled Tuesday 3|2 Blitz"]
[Site "Chess.com"]
[Date "2017.04.18"]
[Round "2"]
[White "Cayse"]
[Black "Rodalquilar"]
[Result "0-1"]
[WhiteElo "2620"]
[BlackElo "2528"]
[TimeControl "180+2"]
[EndTime "13:21:51 PDT"]
[Termination "Rodalquilar won by resignation"]

1. e4 {[%clk 0:03:02]} 1... e5 {[%clk 0:03:00.5]} 2. Nf3 {[%clk 0:03:02.4]} 2...
Nc6 {[%clk 0:03:01.9]} 3. Bc4 {[%clk 0:03:03.1]} 3... d6 {[%clk 0:02:54.8]} 4.
d4 {[%clk 0:02:50.9]} 4... exd4 {[%clk 0:02:56.7]} 5. Nxd4 {[%clk 0:02:51.3]}
5... g6 {[%clk 0:02:57.5]} 6. Nc3 {[%clk 0:02:44.6]} 6... Bg7 {[%clk 0:02:58.1]}
7. Be3 {[%clk 0:02:45.8]} 7... Nf6 {[%clk 0:02:43.5]} 8. f3 {[%clk 0:02:42.4]}
8... O-O {[%clk 0:02:43.1]} 9. Qd2 {[%clk 0:02:42.9]} 9... a6 {[%clk 0:02:30.9]}
10. O-O {[%clk 0:02:08]} 10... Ne5 {[%clk 0:02:22]} 11. Be2 {[%clk 0:02:07.7]}
11... b5 {[%clk 0:02:22.9]} 12. Kh1 {[%clk 0:02:04]} 12... Bd7 {[%clk 0:02:12]}
13. Nd5 {[%clk 0:01:36.9]} 13... c5 {[%clk 0:01:52]} 14. Nb3 {[%clk 0:01:34.8]}
14... Nxd5 {[%clk 0:01:50.1]} 15. Qxd5 {[%clk 0:01:29.1]} 15... Be6 {[%clk
0:01:51.1]} 16. Qd2 {[%clk 0:01:28.2]} 16... Nc4 {[%clk 0:01:50.4]} 17. Bxc4
{[%clk 0:01:28]} 17... bxc4 {[%clk 0:01:43.6]} 18. Na5 {[%clk 0:01:08.1]} 18...
c3 {[%clk 0:01:43]} 19. bxc3 {[%clk 0:00:59.5]} 19... Qxa5 {[%clk 0:01:43.2]}
20. Qxd6 {[%clk 0:01:00.9]} 20... Rac8 {[%clk 0:01:35.9]} 21. Bg5 {[%clk
0:00:54]} 21... Qxc3 {[%clk 0:01:27.6]} 22. a4 {[%clk 0:00:46.3]} 22... Qxc2
{[%clk 0:01:14.8]} 23. Rac1 {[%clk 0:00:45.7]} 23... Qxa4 {[%clk 0:01:15.8]} 24.
Rxc5 {[%clk 0:00:46.6]} 24... Rxc5 {[%clk 0:01:15.3]} 25. Qxc5 {[%clk
0:00:48.1]} 25... Qb5 {[%clk 0:01:16.2]} 0-1

[Event "*** Qualifier 3: Titled Tuesday 3|2 Blitz"]
[Site "Chess.com"]
[Date "2017.04.18"]
[Round "2"]
[White "RitvarsReimanis"]
[Black "Drags95"]
[Result "1-0"]
[WhiteElo "2439"]
[BlackElo "2538"]
[TimeControl "180+2"]
[EndTime "13:21:55 PDT"]
[Termination "RitvarsReimanis won by resignation"]

1. d4 {[%clk 0:03:02]} 1... Nf6 {[%clk 0:03:00.5]} 2. c4 {[%clk 0:03:03.4]} 2...
e6 {[%clk 0:03:02]} 3. Nc3 {[%clk 0:03:04.7]} 3... Bb4 {[%clk 0:03:02.6]} 4. e3
{[%clk 0:03:06.4]} 4... O-O {[%clk 0:03:03.2]} 5. Ne2 {[%clk 0:03:08.3]} 5...
Re8 {[%clk 0:03:03.2]} 6. a3 {[%clk 0:03:10.2]} 6... Bf8 {[%clk 0:03:03.7]} 7.
g3 {[%clk 0:03:11.8]} 7... d5 {[%clk 0:03:05.1]} 8. cxd5 {[%clk 0:03:13.7]} 8...
exd5 {[%clk 0:03:06.3]} 9. Bg2 {[%clk 0:03:15.3]} 9... c6 {[%clk 0:03:03.5]} 10.
O-O {[%clk 0:03:16.4]} 10... a5 {[%clk 0:03:01.6]} 11. Nf4 {[%clk 0:03:16.4]}
11... Na6 {[%clk 0:02:54.4]} 12. Re1 {[%clk 0:03:14.7]} 12... g6 {[%clk
0:02:31.5]} 13. b3 {[%clk 0:03:14.8]} 13... Bg7 {[%clk 0:02:31.3]} 14. Bb2
{[%clk 0:03:16.1]} 14... Nc7 {[%clk 0:02:27.9]} 15. Rc1 {[%clk 0:03:16.8]} 15...
Ne6 {[%clk 0:02:28.3]} 16. Nxe6 {[%clk 0:03:18.2]} 16... Bxe6 {[%clk 0:02:29.6]}
17. Na4 {[%clk 0:03:20.1]} 17... Nd7 {[%clk 0:02:20.3]} 18. Qd2 {[%clk
0:03:15.1]} 18... h5 {[%clk 0:02:14.9]} 19. h4 {[%clk 0:03:15.4]} 19... Kh8
{[%clk 0:01:50.2]} 20. Nc5 {[%clk 0:03:16.1]} 20... Nxc5 {[%clk 0:01:37.9]} 21.
dxc5 {[%clk 0:03:17.2]} 21... Kg8 {[%clk 0:01:33.3]} 22. Bxg7 {[%clk 0:03:16.9]}
22... Kxg7 {[%clk 0:01:35.2]} 23. Rc3 {[%clk 0:03:12.2]} 23... Qf6 {[%clk
0:01:36.3]} 24. Rd3 {[%clk 0:03:13.2]} 24... Bf5 {[%clk 0:01:35.7]} 25. Rd4
{[%clk 0:03:14.5]} 25... Qe7 {[%clk 0:01:34.1]} 26. Qc3 {[%clk 0:03:09.8]} 26...
Kg8 {[%clk 0:01:34.7]} 27. Red1 {[%clk 0:03:07]} 27... Qe5 {[%clk 0:01:35.2]}
28. Qd2 {[%clk 0:03:02.1]} 28... Qe7 {[%clk 0:01:34.9]} 29. Qc3 {[%clk
0:03:03.5]} 29... Qe5 {[%clk 0:01:35.9]} 30. Qd2 {[%clk 0:03:04.8]} 30... Be6
{[%clk 0:01:31.4]} 31. Ra4 {[%clk 0:03:02.3]} 31... Bg4 {[%clk 0:01:24.5]} 32.
Rc1 {[%clk 0:02:59.3]} 32... Kg7 {[%clk 0:01:19.5]} 33. Rxa5 {[%clk 0:02:42.3]}
33... Rxa5 {[%clk 0:01:21.4]} 34. Qxa5 {[%clk 0:02:43.8]} 34... Qb2 {[%clk
0:01:21.9]} 35. Qc3+ {[%clk 0:02:43.8]} 35... Qxc3 {[%clk 0:01:23]} 36. Rxc3
{[%clk 0:02:45.7]} 36... Ra8 {[%clk 0:01:23.6]} 37. b4 {[%clk 0:02:44.7]} 37...
Kf6 {[%clk 0:01:24.3]} 38. f3 {[%clk 0:02:43.1]} 38... Be6 {[%clk 0:01:24.6]}
39. f4 {[%clk 0:02:40.5]} 39... Rd8 {[%clk 0:01:25.5]} 40. Rd3 {[%clk
0:02:40.3]} 40... Bf5 {[%clk 0:01:26.8]} 41. e4 {[%clk 0:02:37.2]} 41... Be6
{[%clk 0:01:21.4]} 42. exd5 {[%clk 0:02:34]} 42... cxd5 {[%clk 0:01:20.9]} 43.
Kf2 {[%clk 0:02:34.3]} 43... Bf5 {[%clk 0:01:15.6]} 44. Rxd5 {[%clk 0:02:34.9]}
44... Ra8 {[%clk 0:01:16.5]} 45. Rd6+ {[%clk 0:02:36]} 45... Ke7 {[%clk
0:01:17.8]} 46. Rb6 {[%clk 0:02:29.2]} 46... Rxa3 {[%clk 0:01:18.5]} 47. Rxb7+
{[%clk 0:02:30.6]} 47... Kf6 {[%clk 0:01:19.9]} 48. Bd5 {[%clk 0:02:29.3]} 48...
Be6 {[%clk 0:01:20.9]} 49. Bxe6 {[%clk 0:02:28.9]} 49... fxe6 {[%clk 0:01:22.7]}
50. c6 {[%clk 0:02:28.9]} 1-0

[Event "*** Qualifier 3: Titled Tuesday 3|2 Blitz"]
[Site "Chess.com"]
[Date "2017.04.18"]
[Round "2"]
[White "matiss90"]
[Black "agapov771"]
[Result "1-0"]
[WhiteElo "2300"]
[BlackElo "2438"]
[TimeControl "180+2"]
[EndTime "13:22:16 PDT"]
[Termination "matiss90 won by resignation"]

1. e4 {[%clk 0:03:02]} 1... d5 {[%clk 0:03:00.1]} 2. exd5 {[%clk 0:03:02.1]}
2... Qxd5 {[%clk 0:03:00.5]} 3. Nc3 {[%clk 0:03:03.1]} 3... Qd6 {[%clk
0:02:59.6]} 4. d4 {[%clk 0:03:03.6]} 4... Nf6 {[%clk 0:02:58.6]} 5. Nf3 {[%clk
0:03:04.5]} 5... c6 {[%clk 0:02:59.1]} 6. g3 {[%clk 0:03:03.9]} 6... Bf5 {[%clk
0:02:59.2]} 7. Bg2 {[%clk 0:03:04.4]} 7... e6 {[%clk 0:02:59.6]} 8. O-O {[%clk
0:03:04.6]} 8... Be7 {[%clk 0:02:59.6]} 9. Bf4 {[%clk 0:03:03.9]} 9... Qd8
{[%clk 0:02:59.3]} 10. Ne5 {[%clk 0:03:03]} 10... Nbd7 {[%clk 0:02:59.5]} 11.
Qe2 {[%clk 0:03:03.4]} 11... Nxe5 {[%clk 0:02:58.9]} 12. Bxe5 {[%clk 0:03:03.3]}
12... O-O {[%clk 0:02:58.8]} 13. h3 {[%clk 0:02:53.5]} 13... Re8 {[%clk
0:02:57.6]} 14. g4 {[%clk 0:02:53.1]} 14... Bg6 {[%clk 0:02:57.7]} 15. f4 {[%clk
0:02:51.1]} 15... Qb6 {[%clk 0:02:56.3]} 16. b3 {[%clk 0:02:43.1]} 16... h6
{[%clk 0:02:28.4]} 17. Rae1 {[%clk 0:02:37]} 17... Bb4 {[%clk 0:02:21.9]} 18.
Na4 {[%clk 0:02:15.2]} 18... Qd8 {[%clk 0:02:21.3]} 19. c3 {[%clk 0:02:15.3]}
19... Bf8 {[%clk 0:02:16.5]} 20. Nc5 {[%clk 0:02:14.8]} 20... Qc8 {[%clk
0:02:09.5]} 21. Bxf6 {[%clk 0:02:04.1]} 21... gxf6 {[%clk 0:02:08.9]} 22. Ne4
{[%clk 0:01:57]} 22... Bg7 {[%clk 0:02:08.5]} 23. Nd6 {[%clk 0:01:55.3]} 23...
Qd7 {[%clk 0:02:08.9]} 24. Nxe8 {[%clk 0:01:55.5]} 24... Rxe8 {[%clk 0:02:06.2]}
25. f5 {[%clk 0:01:56]} 25... Bh7 {[%clk 0:02:06]} 26. Be4 {[%clk 0:01:43.8]}
26... Qd6 {[%clk 0:01:48.5]} 27. fxe6 {[%clk 0:01:39.9]} 27... Rxe6 {[%clk
0:01:47.5]} 28. Bxh7+ {[%clk 0:01:39.9]} 28... Kxh7 {[%clk 0:01:44.2]} 29. Qd3+
{[%clk 0:01:40.4]} 29... Kg8 {[%clk 0:01:43.8]} 30. Rxe6 {[%clk 0:01:41.6]}
30... fxe6 {[%clk 0:01:43.9]} 31. Kg2 {[%clk 0:01:38]} 31... c5 {[%clk
0:01:43.1]} 32. Qe4 {[%clk 0:01:34]} 32... cxd4 {[%clk 0:01:41.1]} 33. cxd4
{[%clk 0:01:32.7]} 33... b6 {[%clk 0:01:34.3]} 34. Rd1 {[%clk 0:01:28.9]} 34...
a5 {[%clk 0:01:29.1]} 35. d5 {[%clk 0:01:28.9]} 35... h5 {[%clk 0:01:21.3]} 36.
Qxe6+ {[%clk 0:01:27.8]} 36... Qxe6 {[%clk 0:01:20]} 37. dxe6 {[%clk 0:01:27.9]}
37... hxg4 {[%clk 0:01:18.3]} 38. Rd8+ {[%clk 0:01:27.6]} 1-0